Cogmind - Beta 12 @@@ ROGUE MODE // 2023.06.07 @ 21:40:33 Player: LustLizard Result: Self-destructed Performance ------------- Evolutions (7) 3500 Regions Visited (19) 3800 Robots Destroyed (113) 565 Value Destroyed (3255) 3255 Prototype IDs (39) 780 Alien Tech Used (0) 0 Bonus (1487) 1487 TOTAL SCORE: 13387 Bonus ------- High Alert Combat Kills 133 Follower Combat Kills 294 Entered DSFs 500 Aligned with FarCom 300 Met Data Miner 300 Friendly Fire -40 Cogmind --------- Core Integrity 640/1300 Matter 244/300 Energy 100/100 System Corruption 9% Temperature Cool (0) Movement Core (350) Ox6 Location -3/Research Parts ------- > --- POWER (3) -------- (None) > --- PROPULSION (7) --- (None) > --- UTILITY (9) ------ Large Storage Unit Visual Processing Unit Advanced Signal Interpreter > --- WEAPON (2) ------- (None) > --- INVENTORY (15) --- Cooled VTOL Module Advanced Sensor Array Improved Utility Shielding Hardened Medium Armor Plating Improved Medium Armor Plating Layered Medium Armor Plating Advanced Force Field Hacking Suite Plasma Rifle Neutron Cannon KE Penetrator Railgun Rocket Launcher Improved Datajack Peak State ------------ > --- POWER ------------ Fission Core Fission Core Light Particle Reactor > --- PROPULSION ------- Field Propulsion Drive Field Propulsion Array Flying Fortress v7 > --- UTILITY ---------- Advanced Heat Sink Large Storage Unit Visual Processing Unit Advanced Sensor Array Advanced Signal Interpreter Advanced Transmission Jammer Advanced ECM Suite Improved Utility Shielding Force Field > --- WEAPON ----------- Plasma Rifle Railgun > --- INVENTORY -------- Cooled VTOL Module Field Propulsion Drive Field Propulsion Drive Nuclear Pulse Array Impulse Thruster Hardened Medium Armor Plating Improved Medium Armor Plating Layered Medium Armor Plating Advanced Force Field Hacking Suite Neutron Cannon KE Penetrator Rocket Launcher Improved Datajack [Rating: 126] Favorites ----------- Power Neutrino Core Engine Ion Engine Power Core Neutrino Core Reactor Light Particle Reactor Propulsion Improved Aluminum Leg Treads Light Treads Leg Improved Aluminum Leg Wheel Armored Wheel Flight Unit Flying Fortress v7 Utility Large Storage Unit Device Experimental Sensor Array Storage Large Storage Unit Processor Improved Signal Interpreter Protection Medium Armor Plating Weapon Light Assault Rifle Energy Gun Heavy Particle Gun Energy Cannon Heavy Particle Cannon Ballistic Gun Light Assault Rifle Ballistic Cannon Assault Cannon Launcher Grenade Launcher Special Weapon Plasma Flamer Slashing Weapon Mining Claw Special Melee Weapon Improved Datajack Build | -11 -10 -10 -9 -9 -9 -8 -8 -7 -7 -7 -7 -6 -6 -6 -5 -4 -4 -4 -3 ------- Run | Jun Mat Min Mat Min Exi Min Mat Fac Low Low Dat Pro Fac DSF Fac Fac Upp Upp Res Slots Evolved 14 | . . . 2 . . . 2 2 . . . . 2 . 2 2 . . 2 Power 2 | . . . . . . . . . . . . . 1 . . 1 . . . Propulsion 5 | . . . 1 . . . 1 . . . . . 1 . 1 1 . . . Utility 7 | . . . 1 . . . 1 2 . . . . . . 1 . . . 2 Weapon . | . . . . . . . . . . . . . . . . . . . . Parts Attached 142 | 6 13 15 12 12 3 3 31 4 9 . . 5 2 1 4 7 2 . 13 Power 23 | 1 2 6 2 1 . . 3 1 1 . . . 1 . . 2 2 . 1 Engine 13 | 1 1 6 2 1 . . 1 1 . . . . . . . . . . . Core 9 | . 1 . . . . . 2 . 1 . . . 1 . . 2 2 . . Reactor 1 | . . . . . . . . . . . . . . . . . . . 1 Propulsion 34 | 2 7 3 4 3 3 . 4 . . . . . 1 . 1 2 . . 4 Treads 1 | 1 . . . . . . . . . . . . . . . . . . . Leg 21 | . 7 3 2 3 3 . 3 . . . . . . . . . . . . Wheel 3 | 1 . . 2 . . . . . . . . . . . . . . . . Hover . | . . . . . . . . . . . . . . . . . . . . Flight 9 | . . . . . . . 1 . . . . . 1 . 1 2 . . 4 Utility 33 | 1 3 1 2 1 . 1 5 3 4 . . 1 . 1 2 2 . . 6 Device 16 | . . . . 1 . 1 3 1 2 . . 1 . . 1 2 . . 4 Storage 3 | 1 1 . . . . . . 1 . . . . . . . . . . . Processor 5 | . . . 1 . . . 2 . 1 . . . . 1 . . . . . Hackware . | . . . . . . . . . . . . . . . . . . . . Protection 9 | . 2 1 1 . . . . 1 1 . . . . . 1 . . . 2 Artifact . | . . . . . . . . . . . . . . . . . . . . Weapon 52 | 2 1 5 4 7 . 2 19 . 4 . . 4 . . 1 1 . . 2 Energy Gun 14 | . . . . . . . 9 . 2 . . 1 . . 1 . . . 1 Energy Cannon 2 | . . . . . . . . . 1 . . 1 . . . . . . . Ballistic Gun 13 | 2 1 5 2 1 . . 1 . . . . . . . . 1 . . . Ballistic Cannon 5 | . . . . 1 . 1 1 . . . . 2 . . . . . . . Launcher 14 | . . . 2 2 . 1 7 . 1 . . . . . . . . . 1 Special Weapon 2 | . . . . 2 . . . . . . . . . . . . . . . Impact Weapon . | . . . . . . . . . . . . . . . . . . . . Slashing Weapon 1 | . . . . 1 . . . . . . . . . . . . . . . Piercing Weapon . | . . . . . . . . . . . . . . . . . . . . Special Melee Weapon 1 | . . . . . . . 1 . . . . . . . . . . . . Unidentified Prototypes 4 | . . . . . . . 3 . . . . 1 . . . . . . . Parts Lost 40 | . . 3 2 5 . . 11 . 3 . . . . . 1 . 1 . 14 Power 6 | . . . . . . . 1 . . . . . . . . . 1 . 4 Propulsion 16 | . . 1 1 2 . . 5 . . . . . . . . . . . 7 Utility 10 | . . 1 1 . . . 1 . 3 . . . . . 1 . . . 3 Weapon 8 | . . 1 . 3 . . 4 . . . . . . . . . . . . Highest Loss Streak 13 | . . 2 2 5 . . 10 . 2 . . . . . 1 . 1 . 13 To Critical Strikes . | . . . . . . . . . . . . . . . . . . . . Average Slot Usage (%) 89 | . 99 99 99 99 99 100 88 76 74 76 76 76 80 80 81 78 75 78 74 Engine 6 | . 9 14 11 11 11 11 3 3 3 . . . . . . . . . . Core 4 | . 4 . . . . . 5 3 3 7 7 7 13 13 11 13 12 15 11 Leg 15 | . 27 27 21 21 27 33 23 . . . . . . . . . . . . Wheel 2 | . . . 11 11 5 . . . . . . . . . . . . . . Flight 4 | . . . . . . . 2 7 7 7 7 7 13 13 17 16 15 15 14 Device 11 | . . . . 6 11 11 13 23 22 23 23 23 20 20 18 15 21 21 20 Storage 9 | . 14 14 11 11 11 11 9 7 7 7 7 7 6 6 5 5 5 5 4 Processor 9 | . . . 11 11 11 11 12 7 10 15 15 15 13 13 11 10 10 10 9 Protection 4 | . 13 13 10 4 . . . 7 3 . . . . . 3 4 . . 3 Energy Gun 3 | . . . . . . . 10 7 5 7 7 7 6 6 5 5 5 5 3 Ballistic Gun 8 | . 28 27 17 10 11 . . . . . . . . . . 2 5 5 3 Ballistic Cannon 3 | . . . . 1 . 11 3 7 7 7 7 7 6 6 5 2 . . . Launcher 2 | . . . 4 7 11 11 2 . . . . . . . . . . . . Naked Turns . | . . . . . . . . . . . . . . . . . . . . Heaviest Build 72 | 11 35 35 43 43 31 33 44 42 46 46 46 48 53 53 57 67 65 61 72 Greatest Support 72 | 16 26 23 12 12 39 39 56 50 50 50 50 50 53 53 58 72 72 72 72 Greatest Overweight (x) 6 | . 1 1 4 3 2 . . . . . . . . . . . . . 6 Average Overweight (x) . | . . 1 3 2 1 . . . . . . . . . . . . . . Largest Inventory Capacity 15 | 8 15 15 15 15 15 15 15 15 15 15 15 15 15 15 15 15 15 15 15 Average Capacity 14 | 7 14 15 15 15 15 15 15 15 15 15 15 15 15 15 15 15 15 15 15 Most Carried 15 | 6 15 15 15 15 15 15 15 15 15 15 15 15 15 15 15 15 15 15 15 Average Carried 14 | 4 13 14 14 14 14 14 13 14 14 14 15 15 14 14 14 14 14 15 14 Final Capacity 15 | 8 15 15 15 15 15 15 15 15 15 15 15 15 15 15 15 15 15 15 15 Final Carried 15 | 6 15 15 15 15 15 15 15 15 14 15 15 15 15 15 15 15 15 15 14 Class Distribution -------------------- 33% | Mutant 28% | Scout 26% | Scavenger-Mutant 7% | Infiltrator-Scout 3% | Skirmisher Dominant Class ---------------- Mutant | -10/Materials Scavenger-Mutant | -10/Mines Scavenger-Mutant | -9/Materials Scavenger-Mutant | -9/Mines Scavenger-Mutant | -9/Exiles Mutant | -8/Mines Mutant | -8/Materials Scout | -7/Factory Mutant | -7/Lower Caves Scout | -7/Lower Caves Scout | -7/Data Miner Scout | -6/Proximity Caves Scout | -6/Factory Scout | -6/DSF Scout | -5/Factory Scout | -4/Factory Infiltrator-Scout | -4/Upper Caves Infiltrator-Scout | -4/Upper Caves Infiltrator-Scout | -3/Research Resources | -11 -10 -10 -9 -9 -9 -8 -8 -7 -7 -7 -7 -6 -6 -6 -5 -4 -4 -4 -3 ----------- Run | Jun Mat Min Mat Min Exi Min Mat Fac Low Low Dat Pro Fac DSF Fac Fac Upp Upp Res Matter Collected 3027 | 249 196 303 186 516 . 225 630 . 237 . . 144 . 3 104 . 78 48 108 Remotely . | . . . . . . . . . . . . . . . . . . . . Salvage Created 2622 | . 301 273 232 248 . 91 956 . 227 . . 90 . . 85 . . . 119 Parts 221 | . 28 31 16 20 . 8 69 . 16 . . 11 . . 9 . . . 13 Haulers Intercepted 1 | . . . . . . . 1 . . . . . . . . . . . . Recyclers Shooed 3 | . 2 . . . . . . . . . . . . . . . . . 1 Parts Field Recycled . | . . . . . . . . . . . . . . . . . . . . Retrieved Matter . | . . . . . . . . . . . . . . . . . . . . Parts Self-Destructed 29 | . . . . . . . . . 13 . . 15 . . . . 1 . . Prevented . | . . . . . . . . . . . . . . . . . . . . Kills | -11 -10 -10 -9 -9 -9 -8 -8 -7 -7 -7 -7 -6 -6 -6 -5 -4 -4 -4 -3 ------- Run | Jun Mat Min Mat Min Exi Min Mat Fac Low Low Dat Pro Fac DSF Fac Fac Upp Upp Res Combat Hostiles Destroyed 89 | . 8 13 11 12 . 2 24 . 9 . . 4 . . 1 . . . 5 Guns 36 | . 8 13 4 1 . . 6 . . . . 1 . . 1 . . . 2 Cannons 14 | . . . . 2 . 2 5 . 2 . . 3 . . . . . . . AOE 37 | . . . 7 8 . . 12 . 7 . . . . . . . . . 3 Classes Destroyed 14 | . 2 1 2 2 . . 5 . . . . 1 . . . . . . 1 Worker 4 | . . . . 1 . 1 2 . . . . . . . . . . . . Builder 6 | . . . . 1 . . 4 . . . . . . . 1 . . . . Tunneler 7 | . . 1 . 5 . 1 . . . . . . . . . . . . . Hauler 1 | . . . . . . . 1 . . . . . . . . . . . . Recycler 1 | . . . . . . . 1 . . . . . . . . . . . . Operator 1 | . . . . . . . 1 . . . . . . . . . . . . Watcher 4 | . . . . . . . 2 . . . . . . . 2 . . . . Swarmer 32 | . 2 11 4 3 . . 4 . 3 . . 2 . . . . . . 3 Cutter 2 | . . . . . . . . . . . . . . . . . . . 2 Grunt 38 | . 6 2 5 9 . 2 12 . 1 . . . . . 1 . . . . Brawler 3 | . . . 1 . . . 1 . 1 . . . . . . . . . . Duelist 4 | . . . . . . . 1 . 3 . . . . . . . . . . Sentry 8 | . . . 1 . . . 6 . 1 . . . . . . . . . . Programmer 2 | . . . . . . . . . . . . 2 . . . . . . . Best Kill Streak 13 | . 2 3 4 13 . 2 10 . 8 . . 2 . . 1 . . . 3 Combat Bots Only 8 | . 2 3 4 8 . 2 6 . 8 . . 2 . . 1 . . . 3 Max Kills in Single Turn 5 | . 1 1 4 4 . 1 3 . 5 . . 1 . . 1 . . . 2 Gunslinging . | . . . . . . . . . . . . . . . . . . . . Exploded 5 | . . . 4 2 . . 3 . 5 . . . . . . . . . 2 Melee . | . . . . . . . . . . . . . . . . . . . . Uniques/NPCs Destroyed . | . . . . . . . . . . . . . . . . . . . . Combat | -11 -10 -10 -9 -9 -9 -8 -8 -7 -7 -7 -7 -6 -6 -6 -5 -4 -4 -4 -3 -------- Run | Jun Mat Min Mat Min Exi Min Mat Fac Low Low Dat Pro Fac DSF Fac Fac Upp Upp Res Damage Taken 7124 | . 444 817 350 802 . 107 1522 . 373 . . 97 . 64 186 . 205 . 2157 Core 1463 | . 78 134 24 149 . 32 344 . 23 . . . . . . . 19 . 660 Absorbed by Shields 285 | . . . . . . . 12 . . . . . . . . . . . 273 Redirected to Shielding 180 | . . . . . . . . . 104 . . . . . . . . . 76 Core Remaining (%) 74 | 100 . 15 . . . 48 37 . . . . 96 . 100 100 . . 98 . Volleys Fired 337 | . 39 60 25 57 . 23 69 . 22 . . 16 . . 13 . 1 . 12 Largest 2 | . 2 2 2 2 . 1 2 . 2 . . 2 . . 2 . 2 . 2 Hottest 123 | . 40 40 50 123 . 35 121 . 119 . . 103 . . 123 . 110 . 110 Shots Fired 542 | . 78 119 45 71 . 23 99 . 28 . . 28 . . 25 . 2 . 24 Gun 372 | . 78 119 39 38 . . 51 . 1 . . 12 . . 12 . 2 . 20 Cannon 106 | . . . . 5 . 23 25 . 24 . . 16 . . 13 . . . . Launcher 48 | . . . 6 12 . . 23 . 3 . . . . . . . . . 4 Special 16 | . . . . 16 . . . . . . . . . . . . . . . Kinetic 391 | . 78 119 39 43 . 23 31 . 16 . . 16 . . 13 . 1 . 12 Thermal 99 | . . . . 16 . . 41 . 9 . . 12 . . 12 . 1 . 8 Explosive 48 | . . . 6 12 . . 23 . 3 . . . . . . . . . 4 Electromagnetic 4 | . . . . . . . 4 . . . . . . . . . . . . Robot Hit Streak 11 | . 10 6 8 11 . 6 9 . 8 . . 3 . . 4 . 6 . 8 Robot Miss Streak 9 | . 9 6 2 2 . 2 5 . 1 . . 7 . . 3 . . . 5 Penetration Max . | . . . . . . . . . . . . . . . . . . . . Secondary Targets 4 | . . 2 1 . . . 1 . . . . . . . . . . . . Max Gunslinging Chain 1 | . . 1 1 . . . 1 . . . . . . . . . . . . Shots Hit Robots 314 | . 49 63 30 42 . 17 63 . 13 . . 11 . . 14 . 2 . 10 Core Hits 213 | . 18 29 24 29 . 4 66 . 20 . . 6 . . 8 . . . 9 Critical Kills 1 | . . 1 . . . . . . . . . . . . . . . . . Critical Parts Destroyed 4 | . . 1 . 1 . . . . . . . 1 . . 1 . . . . Critical Strikes 13 | . . 2 . 6 . . 1 . . . . 3 . . 1 . . . . Burn 7 | . . . . 5 . . 1 . . . . 1 . . . . . . . Destroy 5 | . . 2 . 1 . . . . . . . 1 . . 1 . . . . Blast 1 | . . . . . . . . . . . . 1 . . . . . . . Melee Attacks . | . . . . . . . . . . . . . . . . . . . . Impact . | . . . . . . . . . . . . . . . . . . . . Slashing . | . . . . . . . . . . . . . . . . . . . . Piercing . | . . . . . . . . . . . . . . . . . . . . Sneak Attacks . | . . . . . . . . . . . . . . . . . . . . Combat Hostiles . | . . . . . . . . . . . . . . . . . . . . Follow-up Attacks . | . . . . . . . . . . . . . . . . . . . . Damage Inflicted 8085 | . 516 536 591 1355 . 296 2654 . 923 . . 344 . . 347 . 43 . 480 Guns 2710 | . 516 535 216 351 . . 535 . 21 . . 95 . . 173 . 43 . 225 Cannons 1339 | . . . . . . 296 403 . 217 . . 249 . . 174 . . . . Explosions 3931 | . . . 375 900 . . 1716 . 685 . . . . . . . . . 255 Melee . | . . . . . . . . . . . . . . . . . . . . Ramming 1 | . . 1 . . . . . . . . . . . . . . . . . Kinetic 3222 | . 516 535 216 351 . 296 465 . 217 . . 249 . . 174 . 22 . 181 Thermal 899 | . . . . 104 . . 441 . 21 . . 95 . . 173 . 21 . 44 Explosive 3886 | . . . 375 900 . . 1671 . 685 . . . . . . . . . 255 Electromagnetic 77 | . . . . . . . 77 . . . . . . . . . . . . Impact . | . . . . . . . . . . . . . . . . . . . . Slashing . | . . . . . . . . . . . . . . . . . . . . Piercing . | . . . . . . . . . . . . . . . . . . . . Highest Corruption 9 | . . . . . . . . . . . . . . . . . . . 9 Average Corruption 4 | . . . . . . . . . . . . . . . . . . . 4 Corruption Purged . | . . . . . . . . . . . . . . . . . . . . Corruption Blocked . | . . . . . . . . . . . . . . . . . . . . Effects 3 | . . . . . . . . . . . . . . . . . . . 3 Heat Flow Errors 1 | . . . . . . . . . . . . . . . . . . . 1 Energy Discharges 2 | . . . . . . . . . . . . . . . . . . . 2 Overload Shots . | . . . . . . . . . . . . . . . . . . . . Overflow Damage 80 | . . . . 32 . . 21 . 27 . . . . . . . . . . Projectiles . | . . . . . . . . . . . . . . . . . . . . Explosions 80 | . . . . 32 . . 21 . 27 . . . . . . . . . . Melee . | . . . . . . . . . . . . . . . . . . . . Knockbacks 18 | . . . . . . 6 2 . 6 . . 2 . . 2 . . . . Impact . | . . . . . . . . . . . . . . . . . . . . Kinetic 16 | . . . . . . 4 2 . 6 . . 2 . . 2 . . . . Secondary 2 | . . . . . . 2 . . . . . . . . . . . . . Self-Inflicted Damage 438 | . . . 35 178 . . 84 . 87 . . . . . . . . . 54 Shots 16 | . . . 1 6 . . 4 . 3 . . . . . . . . . 2 Rammed . | . . . . . . . . . . . . . . . . . . . . Targets Rammed 1 | . . 1 . . . . . . . . . . . . . . . . . Kicked 1 | . . 1 . . . . . . . . . . . . . . . . . Crushed . | . . . . . . . . . . . . . . . . . . . . Highest Temperature 320 | . 60 85 36 320 . . 182 . 59 . . 22 . . 186 . 24 . 270 Average Temperature 50 | . 14 23 13 107 . . 49 . 32 . . 13 . . 70 . 9 . 66 Received Heat Transfer 1389 | . 141 108 153 276 . 63 448 . 36 . . . . . 54 . 30 . 80 Effects 3 | . . . . 1 . . . . . . . . . . . . . . 2 Interference 3 | . . . . 1 . . . . . . . . . . . . . . 2 Siege Activations . | . . . . . . . . . . . . . . . . . . . . Robots Corrupted . | . . . . . . . . . . . . . . . . . . . . Combat Hostiles . | . . . . . . . . . . . . . . . . . . . . Parts Fried . | . . . . . . . . . . . . . . . . . . . . Impact Corruptions . | . . . . . . . . . . . . . . . . . . . . Robots Melted 2 | . . . . 1 . . 1 . . . . . . . . . . . . Combat Hostiles 2 | . . . . 1 . . 1 . . . . . . . . . . . . Parts Melted 8 | . . . . 6 . . 1 . . . . . . . 1 . . . . Heat Transferred 3433 | . . . . 1440 . . 1147 . 37 . . 259 . . 400 . 50 . 100 Parts Sabotaged . | . . . . . . . . . . . . . . . . . . . . Parts Stolen . | . . . . . . . . . . . . . . . . . . . . Parts Stripped . | . . . . . . . . . . . . . . . . . . . . Power Chain Reactions . | . . . . . . . . . . . . . . . . . . . . Missiles Intercepted . | . . . . . . . . . . . . . . . . . . . . Alert | -11 -10 -10 -9 -9 -9 -8 -8 -7 -7 -7 -7 -6 -6 -6 -5 -4 -4 -4 -3 ------- Run | Jun Mat Min Mat Min Exi Min Mat Fac Low Low Dat Pro Fac DSF Fac Fac Upp Upp Res Peak Influence 736 | . 130 270 384 420 . 65 736 345 . . . . 64 59 293 193 . . 392 Initial 334 | . . 50 5 149 . . . 334 . . . . 64 44 30 143 . . 8 Average 154 | . 43 109 216 198 . 25 233 341 . . . . 64 46 179 129 . . 212 Maximum Alert Level 3 | . . 1 1 2 . . 3 1 . . . . . . 1 . . . 1 Low Security (%) 66 | 100 100 74 62 53 . 100 56 . . . . . 100 100 37 100 . . 46 Level 1 26 | . . 25 37 41 . . 8 100 . . . . . . 62 . . . 53 Level 2 5 | . . . . 4 . . 28 . . . . . . . . . . . . Level 3 1 | . . . . . . . 6 . . . . . . . . . . . . Level 4 . | . . . . . . . . . . . . . . . . . . . . Level 5 . | . . . . . . . . . . . . . . . . . . . . High Security . | . . . . . . . . . . . . . . . . . . . . Max Security . | . . . . . . . . . . . . . . . . . . . . Squads Dispatched 15 | . 2 . . . . . 6 1 . . . . . . 1 1 . . 4 Investigation 4 | . 2 . . . . . . . . . . . . . 1 1 . . . Extermination 2 | . . . . . . . . 1 . . . . . . . . . . 1 Reinforcement 8 | . . . . . . . 5 . . . . . . . . . . . 3 Assault 1 | . . . . . . . 1 . . . . . . . . . . . . Garrison . | . . . . . . . . . . . . . . . . . . . . Intercept . | . . . . . . . . . . . . . . . . . . . . Searches Triggered . | . . . . . . . . . . . . . . . . . . . . Data Miner Redirects 1 | . . . . . . . . . . . . . . . 1 . . . . Construction Impeded . | . . . . . . . . . . . . . . . . . . . . Haulers Reinforced . | . . . . . . . . . . . . . . . . . . . . Active Scanning Responses . | . . . . . . . . . . . . . . . . . . . . Cargo Convoy Interrupts . | . . . . . . . . . . . . . . . . . . . . Stealth | -11 -10 -10 -9 -9 -9 -8 -8 -7 -7 -7 -7 -6 -6 -6 -5 -4 -4 -4 -3 --------- Run | Jun Mat Min Mat Min Exi Min Mat Fac Low Low Dat Pro Fac DSF Fac Fac Upp Upp Res Distress Signals 11 | . 1 . 3 . . . 5 . . . . . . . 1 . 1 . . Communications Jammed 18 | . . . . . . . . . . . . . . . . . . . 18 Distress Signals 18 | . . . . . . . . . . . . . . . . . . . 18 Times Spotted 162 | . 13 14 19 16 . 2 39 1 9 . . 9 . 1 4 1 5 . 29 Peak Tracking Total 9 | . 3 3 7 6 . 2 6 1 9 . . 4 . 1 2 4 4 . 7 Tactical Retreats 19 | . 1 1 . 2 . . 3 . . . . . . 1 . 1 3 . 7 Traps | -11 -10 -10 -9 -9 -9 -8 -8 -7 -7 -7 -7 -6 -6 -6 -5 -4 -4 -4 -3 ------- Run | Jun Mat Min Mat Min Exi Min Mat Fac Low Low Dat Pro Fac DSF Fac Fac Upp Upp Res Traps Triggered 5 | . 2 . . . . . . . . . . . 1 . 2 . . . . Indirectly . | . . . . . . . . . . . . . . . . . . . . Trap Hack Attempts . | . . . . . . . . . . . . . . . . . . . . Triggered . | . . . . . . . . . . . . . . . . . . . . Disarmed . | . . . . . . . . . . . . . . . . . . . . Reprogrammed . | . . . . . . . . . . . . . . . . . . . . Reused . | . . . . . . . . . . . . . . . . . . . . Traps Extracted . | . . . . . . . . . . . . . . . . . . . . Installed . | . . . . . . . . . . . . . . . . . . . . Triggered 1 | . . . . . . . . . . 1 . . . . . . . . . Machines | -11 -10 -10 -9 -9 -9 -8 -8 -7 -7 -7 -7 -6 -6 -6 -5 -4 -4 -4 -3 ---------- Run | Jun Mat Min Mat Min Exi Min Mat Fac Low Low Dat Pro Fac DSF Fac Fac Upp Upp Res Machines Disabled 10 | . . . 1 . . 1 5 . . . . . . . 3 . . . . Max in Single Turn 2 | . . . 1 . . 1 2 . . . . . . . . . . . . Machines Repaired . | . . . . . . . . . . . . . . . . . . . . Machines Sabotaged . | . . . . . . . . . . . . . . . . . . . . Overloaded Fab Kills . | . . . . . . . . . . . . . . . . . . . . Hacking | -11 -10 -10 -9 -9 -9 -8 -8 -7 -7 -7 -7 -6 -6 -6 -5 -4 -4 -4 -3 --------- Run | Jun Mat Min Mat Min Exi Min Mat Fac Low Low Dat Pro Fac DSF Fac Fac Upp Upp Res Machines Accessed 22 | . 2 . 1 1 1 . 2 3 . . 4 1 1 . 3 2 . . 1 Terminals 9 | . 2 . 1 . . . 1 1 . . . 1 1 . . 1 . . 1 Fabricators 4 | . . . . . . . . 1 . . . . . . 2 1 . . . Repair Stations . | . . . . . . . . . . . . . . . . . . . . Recycling Units . | . . . . . . . . . . . . . . . . . . . . Scanalyzers 1 | . . . . . . . 1 . . . . . . . . . . . . Garrison Access 2 | . . . . . . . . 1 . . . . . . 1 . . . . Total Hacks 64 | . 3 . 3 1 1 . 6 5 . . 28 2 1 . 5 7 . . 2 Successful 48 | . 1 . 1 1 1 . 4 2 . . 28 2 1 . 3 3 . . 1 Failed 16 | . 2 . 2 . . . 2 3 . . . . . . 2 4 . . 1 Catastrophic 4 | . . . . . . . 1 2 . . . . . . 1 . . . . Database Lockouts . | . . . . . . . . . . . . . . . . . . . . Manual 15 | . 2 . 3 . 1 . 4 . . . . . . . . 3 . . 2 Terminals 21 | . 3 . 3 . . . 4 3 . . . 2 1 . . 3 . . 2 Fabricators 9 | . . . . . . . . 1 . . . . . . 4 4 . . . Repair Stations . | . . . . . . . . . . . . . . . . . . . . Recycling Units . | . . . . . . . . . . . . . . . . . . . . Scanalyzers 2 | . . . . . . . 2 . . . . . . . . . . . . Garrison Access 2 | . . . . . . . . 1 . . . . . . 1 . . . . Terminal Hacks 37 | . 1 . . 1 1 . 1 1 . . 28 2 1 . . 1 . . . Record 11 | . . . . . . . . . . . 9 2 . . . . . . . Part Schematic 9 | . . . . . . . . . . . 9 . . . . . . . . Robot Schematic 7 | . . . . . . . . . . . 7 . . . . . . . . Prototype ID Bank 3 | . . . . . . . . . . . 3 . . . . . . . . Open Door 1 | . . . . 1 . . . . . . . . . . . . . . . Open DSF 1 | . . . . . . . . . . . . . 1 . . . . . . Branch Access Points 2 | . 1 . . . . . . 1 . . . . . . . . . . . Unreport Threat 2 | . . . . . . . 1 . . . . . . . . 1 . . . EX-Prototype ID Bank 1 | . . . . . 1 . . . . . . . . . . . . . . Fabricator Hacks 6 | . . . . . . . . 1 . . . . . . 3 2 . . . Load Schematic 3 | . . . . . . . . . . . . . . . 2 1 . . . Build 3 | . . . . . . . . 1 . . . . . . 1 1 . . . Repair Station Hacks . | . . . . . . . . . . . . . . . . . . . . Recycling Unit Hacks . | . . . . . . . . . . . . . . . . . . . . Scanalyzer 2 | . . . . . . . 2 . . . . . . . . . . . . Insert Component 1 | . . . . . . . 1 . . . . . . . . . . . . Analyze 1 | . . . . . . . 1 . . . . . . . . . . . . Garrison Access Hacks . | . . . . . . . . . . . . . . . . . . . . Unauthorized Hacks 3 | . . . 1 . . . 1 . . . . . . . . . . . 1 Terminals 3 | . . . 1 . . . 1 . . . . . . . . . . . 1 Assimilate 1 | . . . . . . . . . . . . . . . . . . . 1 Botnet 2 | . . . 1 . . . 1 . . . . . . . . . . . . Fabricators . | . . . . . . . . . . . . . . . . . . . . Repair Stations . | . . . . . . . . . . . . . . . . . . . . Recycling Units . | . . . . . . . . . . . . . . . . . . . . Scanalyzers . | . . . . . . . . . . . . . . . . . . . . Garrison Access . | . . . . . . . . . . . . . . . . . . . . Data Cores Recovered . | . . . . . . . . . . . . . . . . . . . . Used . | . . . . . . . . . . . . . . . . . . . . Hacking Detections 13 | . 2 . 1 . . . 1 2 . . . 1 . . 3 2 . . 1 Full Trace Events 2 | . . . . . . . . . . . . . . . 1 1 . . . Feedback Events . | . . . . . . . . . . . . . . . . . . . . Feedback Blocked . | . . . . . . . . . . . . . . . . . . . . Robot Schematics Acquired 7 | . . . . . . . . . . . 7 . . . . . . . . Robots Built . | . . . . . . . . . . . . . . . . . . . . Authchips . | . . . . . . . . . . . . . . . . . . . . Time . | . . . . . . . . . . . . . . . . . . . . Total Robot Build Rating . | . . . . . . . . . . . . . . . . . . . . Part Schematics Acquired 9 | . . . . . . . . . . . 9 . . . . . . . . Parts Built 2 | . . . . . . . . 1 . . . . . . . 1 . . . Authchips . | . . . . . . . . . . . . . . . . . . . . Time 334 | . . . . . . . . 106 . . . . . . 76 152 . . . Total Part Build Rating 11 | . . . . . . . . 6 . . . . . . . 5 . . . Parts Repaired . | . . . . . . . . . . . . . . . . . . . . Time . | . . . . . . . . . . . . . . . . . . . . Parts Recycled . | . . . . . . . . . . . . . . . . . . . . Recycled Matter . | . . . . . . . . . . . . . . . . . . . . Retrieved Matter . | . . . . . . . . . . . . . . . . . . . . Retrieved Components . | . . . . . . . . . . . . . . . . . . . . Parts Scanalyzed 1 | . . . . . . . 1 . . . . . . . . . . . . Part Schematics Acquired . | . . . . . . . . . . . . . . . . . . . . Parts Damaged . | . . . . . . . . . . . . . . . . . . . . Bothacking | -11 -10 -10 -9 -9 -9 -8 -8 -7 -7 -7 -7 -6 -6 -6 -5 -4 -4 -4 -3 ------------ Run | Jun Mat Min Mat Min Exi Min Mat Fac Low Low Dat Pro Fac DSF Fac Fac Upp Upp Res Used RIF Installer . | . . . . . . . . . . . . . . . . . . . . Robots Hacked . | . . . . . . . . . . . . . . . . . . . . Non-combat . | . . . . . . . . . . . . . . . . . . . . Combat . | . . . . . . . . . . . . . . . . . . . . Robot Hacks Applied . | . . . . . . . . . . . . . . . . . . . . Relay Couplers Released . | . . . . . . . . . . . . . . . . . . . . Fabnet Peak Effective % . | . . . . . . . . . . . . . . . . . . . . Robots Rewired 2 | . . . . . . . . . 2 . . . . . . . . . . Allies Hacked . | . . . . . . . . . . . . . . . . . . . . Hacks Repelled . | . . . . . . . . . . . . . . . . . . . . Allies | -11 -10 -10 -9 -9 -9 -8 -8 -7 -7 -7 -7 -6 -6 -6 -5 -4 -4 -4 -3 -------- Run | Jun Mat Min Mat Min Exi Min Mat Fac Low Low Dat Pro Fac DSF Fac Fac Upp Upp Res Total Allies 7 | . . . . 4 . . . . 2 . . 1 . . . . . . . Largest Group 4 | . . . . 4 4 3 . . 2 2 2 3 1 1 1 . . . . Highest-Rated Group 144 | . . . . 71 71 40 . . 48 48 48 144 32 32 32 . . . . Highest-Rated Ally 96 | . . . . 31 31 16 . . 32 32 32 96 32 32 32 . . . . Total Orders . | . . . . . . . . . . . . . . . . . . . . Ally Attacks 73 | . . . . 14 . 21 . . . 7 . 25 . . 6 . . . . Total Damage 2037 | . . . . 184 . 241 . . . 146 . 743 . . 723 . . . . Kills 16 | . . . . 3 . 1 . . . 1 . 5 . . 6 . . . . Allies Corrupted . | . . . . . . . . . . . . . . . . . . . . Allies Melted . | . . . . . . . . . . . . . . . . . . . . Intel | -11 -10 -10 -9 -9 -9 -8 -8 -7 -7 -7 -7 -6 -6 -6 -5 -4 -4 -4 -3 ------- Run | Jun Mat Min Mat Min Exi Min Mat Fac Low Low Dat Pro Fac DSF Fac Fac Upp Upp Res Robot Analysis Total . | . . . . . . . . . . . . . . . . . . . . Derelict Logs Recovered 7 | . . 1 . 2 . . . . 1 . . 2 . . . . 1 . . Drone Launches . | . . . . . . . . . . . . . . . . . . . . Drone Recoveries . | . . . . . . . . . . . . . . . . . . . . Exploration | -11 -10 -10 -9 -9 -9 -8 -8 -7 -7 -7 -7 -6 -6 -6 -5 -4 -4 -4 -3 ------------- Run | Jun Mat Min Mat Min Exi Min Mat Fac Low Low Dat Pro Fac DSF Fac Fac Upp Upp Res Turns Passed 8671 | 47 670 1105 307 1263 258 679 1044 277 668 366 51 577 116 56 345 190 134 143 375 Spaces Moved 9183 | 35 269 478 162 574 211 521 910 464 1028 729 88 927 183 95 719 483 325 366 616 Core 8 | 7 . . . . . . . . . . . . . . . . . . 1 Treads 1 | . 1 . . . . . . . . . . . . . . . . . . Legs 1836 | . 261 478 1 . 100 521 475 . . . . . . . . . . . . Wheels 881 | 28 7 . 161 574 111 . . . . . . . . . . . . . . Hover . | . . . . . . . . . . . . . . . . . . . . Flight 6457 | . . . . . . . 435 464 1028 729 88 927 183 95 719 483 325 366 615 Fastest Speed 30 | 50 100 190 125 120 120 120 50 50 50 50 50 50 39 39 34 32 39 39 30 Average Speed 72 | 90 183 190 132 121 120 120 86 50 50 50 50 50 39 39 34 36 39 39 40 Slowest Speed 365 | 100 190 190 330 135 120 120 120 50 50 50 50 50 39 39 34 39 39 39 365 Overloaded Moves . | . . . . . . . . . . . . . . . . . . . . Propulsion Burnouts . | . . . . . . . . . . . . . . . . . . . . Robots Hopped 39 | . . . . . . . 1 3 2 . . 1 1 . 4 6 1 . 20 Cave-ins Triggered . | . . . . . . . . . . . . . . . . . . . . Exploration Rate (%) 53 | 4 30 97 24 91 60 92 71 17 92 80 71 97 4 66 24 13 64 40 25 Regions Visited 19 Branch Regions 10 Pre-discovered Areas 4 | . . 2 . . . . . . . . 1 1 . . . . . . . Known Exits Taken 12 | . 1 . . . . . 1 1 1 1 1 1 1 . 1 1 1 1 . Unknown Exits Taken 6 | 1 . 1 1 1 1 1 . . . . . . . . . . . . . Scrap Searched 27 | . . 1 . 1 . 3 . . 12 1 . 4 . . . . 3 2 . Spaces Dug 10 | . . . . 10 . . . . . . . . . . . . . . . Terrain Destroyed 336 | . . . 41 94 . . 154 . 28 . . 4 . . 1 . 1 . 13 Melee . | . . . . . . . . . . . . . . . . . . . . Projectile 14 | . . . . . . . 5 . 1 . . 4 . . 1 . 1 . 2 AOE 322 | . . . 41 94 . . 149 . 27 . . . . . . . . . 11 Terrain Rammed . | . . . . . . . . . . . . . . . . . . . . Walls Destroyed . | . . . . . . . . . . . . . . . . . . . . Machines Disabled . | . . . . . . . . . . . . . . . . . . . . Actions | -11 -10 -10 -9 -9 -9 -8 -8 -7 -7 -7 -7 -6 -6 -6 -5 -4 -4 -4 -3 --------- Run | Jun Mat Min Mat Min Exi Min Mat Fac Low Low Dat Pro Fac DSF Fac Fac Upp Upp Res Total 10635 | 47 384 582 217 1056 218 555 1064 510 1151 729 94 1012 229 113 790 492 328 365 699 Wait 781 | 1 29 15 11 403 . . 24 32 60 . 7 58 22 16 33 . . . 70 Move 9088 | 34 268 477 161 573 210 520 907 457 1023 728 87 924 180 94 710 470 322 365 578 Hop 37 | . . . . . . . 1 3 2 . . 1 1 . 4 6 1 . 18 Pick Up 85 | 6 16 2 3 6 1 4 20 7 2 1 . 2 4 1 5 3 1 . 1 Fast Attach 33 | 6 5 1 1 3 . . 5 . 1 . . 4 . . 1 3 1 . 2 Attach 48 | . 1 2 3 3 3 1 13 2 4 . . . 2 . 3 3 1 . 7 Detach 10 | . 2 . . . . . 1 . 2 . . . . . . . . . 5 Swap 61 | . 7 12 8 6 . 2 13 2 4 . . 1 . 1 . 1 . . 4 Drop 89 | . 17 12 5 5 4 5 11 7 2 . . 6 2 1 3 6 1 . 2 Fire 337 | . 39 60 25 57 . 23 69 . 22 . . 16 . . 13 . 1 . 12 Melee . | . . . . . . . . . . . . . . . . . . . . Ram . | . . . . . . . . . . . . . . . . . . . . Kick 1 | . . 1 . . . . . . . . . . . . . . . . . Crush . | . . . . . . . . . . . . . . . . . . . . Escape Stasis 36 | . . . . . . . . . . . . . 18 . 18 . . . . Rewire 29 | . . . . . . . . . 29 . . . . . . . . . . Trap . | . . . . . . . . . . . . . . . . . . . . Miscellaneous . | . . . . . . . . . . . . . . . . . . . . Route ------- -11/Junkyard -10/Materials -10/Mines (discovered 2 exits: *Mat x2) -9/Materials -9/Mines (discovered 3 exits: *Mat x2 / *Exi) -9/Exiles -8/Mines (discovered 2 exits: *Mat x2) -8/Materials -7/Factory (discovered 5 exits: *Fac / Sto x2 / *Low x2) -7/Lower Caves -7/Lower Caves (discovered 2 exits: *Fac / *Dat) -7/Data Miner -6/Proximity Caves -6/Factory (discovered 2 exits: Ext / DSF) -6/DSF -5/Factory (discovered 2 exits: *Fac x2) -4/Factory -4/Upper Caves -4/Upper Caves -3/Research (discovered 1 exit: *Tes) History --------- Turn | Location | Event 14 | -11/Junkyard | Discovered new exit (range 16) 48 | -11/Junkyard | Entered Materials 222 | -10/Materials | Identified exit to Mines 330 | -10/Materials | Build established: Mutant 718 | -10/Materials | Entered Mines 820 | -10/Mines | Build established: Scavenger-Mutant 1178 | -10/Mines | Learned location of Zion (-6) 1178 | -10/Mines | Discovered new exit (range 3) 1181 | -10/Mines | Learned location of Storage (-7) 1218 | -10/Mines | Core integrity fell below 50% 1367 | -10/Mines | Found a hidden stash of uninstalled traps 1406 | -10/Mines | Discovered new exit (range 11) 1440 | -10/Mines | Core integrity fell below 20% 1546 | -10/Mines | A weapon hastily lodged in a ceiling crevice suddenly fell to the ground 1823 | -10/Mines | Entered Materials 1823 | -9/Materials | Evolved 2 slots: Propulsion x1, Utility x1 2105 | -9/Materials | Discovered new exit (range 7) 2130 | -9/Materials | Entered Mines 2174 | -9/Mines | Excavation squad dispatched 2174 | -9/Mines | A large section of the Mines collapsed 2306 | -9/Mines | Build established: Mutant 2424 | -9/Mines | Excavation squad dispatched 2674 | -9/Mines | Excavation squad dispatched 2780 | -9/Mines | Destroyed 8 combat bots 2782 | -9/Mines | Escorted by a lone wolf Derelict 2782 | -9/Mines | Lost 5 parts (2n3w) 2879 | -9/Mines | Learned 2 Materials zone layouts 2908 | -9/Mines | Discovered new exit (range 14) 2952 | -9/Mines | Assisted by bots powering up and referring to "LRC-V3" 3034 | -9/Mines | Deemed a non-threat by the Exiles lab entrance 3034 | -9/Mines | Discovered new exit (range 5) 3075 | -9/Mines | Build established: Scavenger-Mutant 3155 | -9/Mines | Received a Rocket Launcher from a helpful Derelict 3222 | -9/Mines | Learned Materials stockpile data 3253 | -9/Mines | Discovered new exit (range 15) 3264 | -9/Mines | Found a damaged Exp. Sensor Array with a note attached 3267 | -9/Mines | Found Prototype Device 3281 | -9/Mines | Found the Drone Emporium 3291 | -9/Mines | Found Prototype Device 3393 | -9/Mines | Entered Exiles 3393 | -9/Exiles | Accompanied by 4 allies 3422 | -9/Exiles | Met 8R-AWN 3441 | -9/Exiles | Met EX-HEX 3476 | -9/Exiles | Met EX-BIN 3491 | -9/Exiles | Aligned with FarCom system 3492 | -9/Exiles | Given EX-Vault access code 3519 | -9/Exiles | Opened EX-Vault 3532 | -9/Exiles | Found Flying Fortress v7 3558 | -9/Exiles | Warned to stay clear of 0b10 Research branches 3642 | -9/Exiles | Discovered new exit (range 10) 3651 | -9/Exiles | Left Exiles lab with Flying Fortress v7 3651 | -9/Exiles | Entered Mines 3651 | -8/Mines | Accompanied by 3 allies 3745 | -8/Mines | Core integrity fell below 50% 3776 | -8/Mines | Discovered new exit (range 5) 3832 | -8/Mines | Build established: Mutant 4248 | -8/Mines | Discovered new exit (range 13) 4330 | -8/Mines | Entered Materials 4330 | -8/Materials | Evolved 2 slots: Propulsion x1, Utility x1 4798 | -8/Materials | Identified Thief Drone Bay 4800 | -8/Materials | Identified Exp. Sensor Array 5053 | -8/Materials | Core integrity fell below 50% 5085 | -8/Materials | Lost 10 parts (1p4n1u4w) 5130 | -8/Materials | First assault squad dispatched 5353 | -8/Materials | Build established: Scout 5366 | -8/Materials | Discovered new exit (range 16) 5373 | -8/Materials | Identified exit to Factory 5374 | -8/Materials | Entered Factory 5374 | -7/Factory | Evolved 2 slots: Utility x2 5418 | -7/Factory | Identified exit to Storage 5418 | -7/Factory | Identified exit to Lower Caves 5562 | -7/Factory | Discovered new exit (range 14) 5569 | -7/Factory | Identified exit to Factory 5644 | -7/Factory | Fabricated Imp. Transmission Jammer (x1) 5651 | -7/Factory | Entered Lower Caves 5711 | -7/Lower Caves | Learned Factory non-interactive machine intel 5896 | -7/Lower Caves | Discovered new exit (range 8) 5899 | -7/Lower Caves | Identified exit to Lower Caves 5951 | -7/Lower Caves | Build established: Mutant 5955 | -7/Lower Caves | Attracted the attention of an 0b10 outpost 5988 | -7/Lower Caves | Destroyed 8 combat bots 6126 | -7/Lower Caves | Encountered a Warlord checkpoint 6316 | -7/Lower Caves | Build established: Scout 6319 | -7/Lower Caves | Entered another Lower Caves area 6319 | -7/Lower Caves | Accompanied by 2 allies 6329 | -7/Lower Caves | Discovered exit to Factory (range 10) 6648 | -7/Lower Caves | Discovered new exit (range 14) 6654 | -7/Lower Caves | Identified exit to Data Miner 6685 | -7/Lower Caves | Entered Data Miner 6685 | -7/Data Miner | Accompanied by 2 allies 6685 | -7/Data Miner | Discovered new exit (range 8) 6696 | -7/Data Miner | Met Data Miner 6710 | -7/Data Miner | Learned location of Section 7 (-2) 6715 | -7/Data Miner | Received God Mode back door access code from Data Miner 6725 | -7/Data Miner | Identified exit to Proximity Caves 6736 | -7/Data Miner | Entered Proximity Caves 6736 | -6/Proximity Caves | Accompanied by 2 allies 6864 | -6/Proximity Caves | Escorted by Enhanced Grunt 7212 | -6/Proximity Caves | Discovered exit to Factory (range 14) 7313 | -6/Proximity Caves | Entered Factory 7313 | -6/Factory | Accompanied by 1 ally 7313 | -6/Factory | Evolved 2 slots: Power x1, Propulsion x1 7314 | -6/Factory | Identified exit to Extension 7315 | -6/Factory | Loaded intel: 201 non-interactive machine locations 7328 | -6/Factory | Identified exit to DSF 7429 | -6/Factory | Entered DSF 7429 | -6/DSF | Accompanied by 1 ally 7448 | -6/DSF | Discovered new exit (range 11) 7458 | -6/DSF | Additional patrols routed to DSF 7464 | -6/DSF | Identified exit to Factory 7485 | -6/DSF | Entered Factory 7485 | -5/Factory | Accompanied by 1 ally 7485 | -5/Factory | Evolved 2 slots: Propulsion x1, Utility x1 7806 | -5/Factory | Incoming investigation squad redirected 7826 | -5/Factory | Discovered new exit (range 10) 7829 | -5/Factory | Discovered new exit (range 16) 7829 | -5/Factory | Identified exit to Factory 7830 | -5/Factory | Entered another Factory area 7830 | -4/Factory | Evolved 2 slots: Power x1, Propulsion x1 7987 | -4/Factory | Fabricated Biomechanical Wings? 8003 | -4/Factory | Discovered new exit (range 5) 8004 | -4/Factory | Identified exit to Upper Caves 8020 | -4/Factory | Entered Upper Caves 8025 | -4/Upper Caves | Encountered a Warlord checkpoint 8033 | -4/Upper Caves | Attracted the attention of an 0b10 checkpoint 8140 | -4/Upper Caves | Discovered new exit (range 14) 8153 | -4/Upper Caves | Spotted B-86 Titan 8153 | -4/Upper Caves | Identified exit to Upper Caves 8154 | -4/Upper Caves | Entered another Upper Caves area 8163 | -4/Upper Caves | Discovered new exit (range 9) 8166 | -4/Upper Caves | Identified exit to Research 8297 | -4/Upper Caves | Entered Research 8297 | -3/Research | Evolved 2 slots: Utility x2 8319 | -3/Research | Build established: Infiltrator-Scout 8455 | -3/Research | Spotted B-86 Titan 8514 | -3/Research | Discovered new exit (range 16) 8520 | -3/Research | Identified exit to Testing 8638 | -3/Research | Spotted B-86 Titan 8672 | -3/Research | Self-destructed Last Messages --------------- 08639_ Adv. Heat Sink destroyed. 08642_ System corrupted: Heat flow error (+286). 08643_ Field Propulsion Drive destroyed. 08645_ R-10 Processor inserts Wheel into recycling unit. 08646_ Overheating: System interference. 08646_ Visual Processing Unit temporarily disabled. 08646_ Adv. Signal Interpreter temporarily disabled. 08648_ Adv. Transmission Jammer destroyed. 08648_ R-10 Processor inserts Lgt. Ion Engine into recycling unit. 08663_ Penetrated by Slug. 08663_ Field Propulsion Array destroyed. 08663_ Slug penetrates Wall. 08663_ Adv. ECM Suite destroyed. 08664_ Impulse Thruster destroyed. 08664_ Nuclear Pulse Array destroyed. 08666_ Lgt. Particle Reactor destroyed. 08666_ Field Propulsion Drive destroyed. 08668_ B-86 Titan activates siege mode. 08669_ Penetrated by Slug. 08669_ Slug penetrates Wall. Map ----- +----------------------------------------------------+ | ??????? ! = ???????????????? | | ?????#? ?#?????????????? | | ?????# """ """ """ #?????????????? | | ?????? """ """ """ ??????????????? | | ????????""" """ """????????????????? | | ?????????? ??????????????????? | | ???????????? ????????????????????? | | ????##########+############??????????? | | ##### #??????????? | | / #??????????? | | #### #??????????? | | #??# """ "" #??????????? | | #??## "" "" ####??????????? | | #???# """ Y" #?????????????? | | +##### "" #?????????????? | | "" "?????????????? | | #?????????????? | | !! #?????????????? | | !! ########??????? | | ### !! # ! !#??????? | | #?# # #??????? | | #?# # #??????? | | ### w # #??????? | | T## ####### ; ; ! ???????? | | ## #?????# ; # ?????????? | | ##? ??????###;BB ;;@#??????????? | | #?##+#####?????##BB ########???? | | # #??????# ss# #???? | | # #??????# p%; #???? | | + " #??????# # #???? | | # "" #??????# p # #???? | | # G #??????# # "#??? | | #? "" #??????# ps + ##??? | | ###? " #??######+####+########???? | | #?? #??# #?????????? | | #?? #??# #?????????? | | #???######??#"" """ #?????????? | | #???????????#"" """ #?????????? | | #???????????#"T """ #?????????? | | #???????????#"" #?????????? | | !#???????????#"" #?????????? | | ? #???????????# """ #?????????? | | ??#???????????# """ #?????????? | | ??????????????# """ #?????????? | | ??????????????# =#?????????? | | ??????????????# #?????????? | | ??????????????##############?????????? | | ?????????????????????????????????????? | | ?????????????????????????????????????? | | ?????????????????????????????????????? | +----------------------------------------------------+ Best States ------------- Heat Dissipation 65 Energy Generation 49 Energy Capacity 600 Matter Stores 300 Matter Capacity 300 Sight Range 18 Robot Scan Range 20 Terrain Scan Density 10 ECM Strength 2 Jamming Range 16 Armor Coverage 225 Propulsion Shielding 66 Utility Shielding 66 Evasion (%) 63 Targeting Accuracy 6 Recoil Reduction 1 Item Schematics ----------------- Combat Drone Bay | -7/Data Miner | Free Lgt. Regenerative Plating | -7/Data Miner | Free Biomechanical Wings | -7/Data Miner | Free Thermal Defense Suite | -7/Data Miner | Free Cld. Plasma Cannon | -7/Data Miner | Free Gyrokinetic Inverter | -7/Data Miner | Free Imp. Thermal Shield | -7/Data Miner | Free Lance | -7/Data Miner | Free Imp. Armor Integrity Analyzer | -7/Data Miner | Free Robot Schematics ------------------ G-50 Soldier | -7/Data Miner | Free M-28 Smith | -7/Data Miner | Free M-14 Sweeper | -7/Data Miner | Free G-47 Trooper | -7/Data Miner | Free I-36 Angel | -7/Data Miner | Free M-22 Extractor | -7/Data Miner | Free H-66 Slayer | -7/Data Miner | Free Fabricated ------------ Imp. Transmission Jammer | x1 | -7/Factory | Preloaded Biomechanical Wings | x1 | -4/Factory Alien Tech Used ----------------- None Achievements -------------- Safety First Challenges ------------ None Game ------ Seed RefineryCorruptionGreatsword Manual? 0 Play Time 01:47:59 Cumulative 73.5 hours Start 2023.06.07 @ 17:01:18 End 2023.06.07 @ 21:40:33 Sessions 3 Manual Loads 0 Difficulty Rogue Special Mode None Game No. 63 Rogue 63 Adventurer 0 Explorer 0 Win Type - Total 0 Types 0/0/0/0/0/0/0/0/0 Lore% 34 Gallery% 43 Achievement% 33 Wizard Run 0 Options --------- ASCII 0 Keyboard 0 Movement Numpad Keybinds 0 Fullscreen 1 Font 18/SmallcapsGlow Map View 76x50 Tactical HUD 1 Map Filters NONE Filters NONE Steam 1 RUN: d5e49d80-84d0-48a0-8789-9a6db7985fd9